fUST/lending_fUST_20251012
["ID","MTS","AMOUNT","RATE_DAILY","PERIOD"]
[390921848,1760220654282,-500.0,0.00023001,2]
[390921849,1760220654291,-500.0,0.00023001,2]
[390921850,1760220654300,-500.0,0.00023001,2]
[390921851,1760220654310,-500.0,0.00023001,2]
[390921852,1760220654319,-500.0,0.00023001,2]
[390921853,1760220654330,-500.0,0.00023001,2]
[390921854,1760220654338,-500.0,0.00023001,2]
[390921855,1760220654347,-500.0,0.00023001,2]
[390921856,1760220654356,-500.0,0.00023001,2]
[390921857,1760220654365,-500.0,0.00023001,2]
[390921858,1760220654374,-500.0,0.00023001,2]
[390921859,1760220654385,-500.0,0.00023001,2]
[390921860,1760220654395,-500.0,0.00023001,2]
[390921861,1760220654405,-443.48879805,0.00023001,2]
[390921862,1760220654414,-500.0,0.00023001,2]
[390921863,1760220654423,-500.0,0.00023001,2]
[390921864,1760220654433,-500.0,0.00023001,2]
[390921865,1760220654441,-500.0,0.00023001,2]
[390921866,1760220654451,-500.0,0.00023001,2]
[390921867,1760220654461,-515.2,0.00023001,2]
[390921868,1760220654471,-500.0,0.00023001,2]
[390921869,1760220654480,-500.0,0.00023001,2]
[390921870,1760220654489,-492.06641522,0.00023001,2]
[390921871,1760220654498,-500.0,0.00023001,2]
[390921872,1760220654507,-500.0,0.00023001,2]
[390921873,1760220654516,-429.45,0.00023001,2]
[390921874,1760220654525,-500.0,0.00023001,2]
[390921875,1760220654534,-500.0,0.00023001,2]
[390921876,1760220654543,-500.0,0.00023001,2]
[390921877,1760220654552,-500.0,0.00023001,2]
[390921878,1760220654562,-500.0,0.00023001,2]
[390921879,1760220654571,-500.0,0.00023001,2]
[390921880,1760220654581,-500.0,0.00023001,2]
[390921881,1760220654590,-199.05076982,0.00023001,2]
[390921882,1760220654599,-500.0,0.00023001,2]
[390921883,1760220654608,-500.0,0.00023001,2]
[390921884,1760220654618,-500.0,0.00023001,2]
[390921885,1760220654627,-500.0,0.00023001,2]
[390921886,1760220654636,-500.0,0.00023001,2]
[390921887,1760220654646,-500.0,0.00023001,2]
[390921888,1760220654738,-330.89250687,0.00023001,2]
[390921889,1760220654747,-559.0,0.00023001,2]
[390921890,1760220654757,-559.0,0.00023001,2]
[390921891,1760220654766,-559.0,0.00023001,2]
[390921892,1760220654775,-559.0,0.00023001,2]
[390921893,1760220654784,-559.0,0.00023001,2]
[390921894,1760220654794,-559.0,0.00023001,2]
[390921895,1760220654803,-500.0,0.00023001,2]
[390921896,1760220654812,-559.0,0.00023001,2]
[390921897,1760220654821,-500.0,0.00023001,2]
[390921898,1760220654832,-559.0,0.00023001,2]
[390921899,1760220654840,-559.0,0.00023001,2]
[390921900,1760220654850,-559.0,0.00023001,2]
[390921901,1760220654859,-559.0,0.00023001,2]
[390921902,1760220654869,-559.0,0.00023001,2]
[390921903,1760220654879,-559.0,0.00023001,2]
[390921904,1760220654889,-559.0,0.00023001,2]
[390921905,1760220654899,-559.0,0.00023001,2]
[390921906,1760220654908,-559.0,0.00023001,2]
[390921907,1760220654918,-559.0,0.00023001,2]
[390921908,1760220654928,-559.0,0.00023001,2]
[390921909,1760220654938,-559.0,0.00023001,2]
[390921910,1760220654949,-559.0,0.00023001,2]
[390921911,1760220654959,-559.0,0.00023001,2]
[390921912,1760220654969,-559.0,0.00023001,2]
[390921913,1760220654979,-559.0,0.00023001,2]
[390921914,1760220654988,-559.14,0.00023001,2]
[390921915,1760220654999,-500.0,0.00023001,2]
[390921916,1760220655009,-500.0,0.00023001,2]
[390921917,1760220655019,-500.0,0.00023001,2]
[390921918,1760220655028,-500.0,0.00023001,2]
[390921919,1760220655038,-500.0,0.00023002,2]
[390921920,1760220655047,-500.0,0.00023002,2]
[390921921,1760220655057,-500.0,0.00023002,2]
[390921922,1760220655067,-500.0,0.00023002,2]
[390921923,1760220655079,-500.0,0.00023002,2]
[390921924,1760220655092,-500.0,0.00023002,2]
[390921925,1760220655101,-500.0,0.00023002,2]
[390921926,1760220655111,-500.0,0.00023002,2]
[390921927,1760220655120,-500.0,0.00023002,2]
[390921928,1760220655130,-500.0,0.00023002,2]
[390921929,1760220655139,-586.08,0.00023002,2]
[390921930,1760220655148,-500.0,0.00023002,2]
[390921931,1760220655158,-500.0,0.00023002,2]
[390921932,1760220655167,-500.0,0.00023002,2]
[390921933,1760220655176,-500.0,0.00023002,2]
[390921934,1760220655186,-526.42,0.00023002,2]
[390921935,1760220655196,-500.0,0.00023002,2]
[390921936,1760220655206,-500.0,0.00023002,2]
[390921937,1760220655216,-500.0,0.00023002,2]
[390921938,1760220655225,-500.0,0.00023002,2]
[390921939,1760220655235,-500.0,0.00023002,2]
[390921940,1760220655244,-500.0,0.00023002,2]
[390921941,1760220655253,-490.0,0.00023002,2]
[390921942,1760220655262,-500.0,0.00023002,2]
[390921943,1760220655272,-500.0,0.00023002,2]
[390921944,1760220655281,-500.0,0.00023002,2]
[390921945,1760220655290,-500.0,0.00023002,2]
[390921946,1760220655299,-500.0,0.00023002,2]
[390921947,1760220655309,-500.0,0.00023002,2]
[390921948,1760220655319,-160.31,0.00023002,2]
[390921949,1760220655333,-500.0,0.00023002,2]
[390921950,1760220655342,-500.0,0.00023002,2]
[390921951,1760220655352,-500.0,0.00023002,2]
[390921952,1760220655361,-500.0,0.00023002,2]
[390921953,1760220655371,-500.0,0.00023002,2]
[390921954,1760220655381,-500.0,0.00023002,2]
[390921955,1760220655398,-500.0,0.00023002,2]
[390921956,1760220655408,-500.0,0.00023002,2]
[390921957,1760220655417,-558.44,0.00023002,2]
[390921958,1760220655427,-500.0,0.00023002,2]
[390921959,1760220655438,-500.0,0.00023002,2]
[390921960,1760220655448,-500.0,0.00023002,2]
[390921961,1760220655459,-500.0,0.00023002,2]
[390921962,1760220655468,-500.0,0.00023002,2]
[390921963,1760220655478,-500.0,0.00023002,2]
[390921964,1760220655487,-500.0,0.00023002,2]
[390921965,1760220655496,-500.0,0.00023002,2]
[390921966,1760220655505,-500.0,0.00023002,2]
[390921967,1760220655514,-500.0,0.00023002,2]
[390921968,1760220655524,-500.0,0.00023002,2]
[390921969,1760220655533,-500.0,0.00023002,2]
[390921970,1760220655543,-334.26,0.00023002,2]
[390921971,1760220655552,-500.0,0.00023073,2]
[390921972,1760220655561,-500.0,0.00023073,2]
[390921973,1760220655571,-500.0,0.00023073,2]
[390921974,1760220655583,-500.0,0.00023103,2]
[390921975,1760220655592,-535.36,0.00023103,2]
[390921976,1760220655602,-500.0,0.00023103,2]
[390921977,1760220655611,-500.0,0.00023103,2]
[390921978,1760220655619,-500.0,0.00023103,2]
[390921979,1760220655628,-500.0,0.00023103,2]
[390921980,1760220655638,-500.0,0.00023103,2]
[390921981,1760220655647,-500.0,0.00023103,2]
[390921982,1760220655656,-351.85,0.00023103,2]
[390921983,1760220655665,-536.12,0.00023103,2]
[390921984,1760220655675,-500.0,0.00023103,2]
[390921985,1760220655684,-500.0,0.00023103,2]
[390921986,1760220655693,-222.6,0.00023103,2]
[390921987,1760220655703,-500.0,0.00023103,2]
[390921988,1760220655713,-500.0,0.00023103,2]
[390921989,1760220655722,-500.0,0.00023103,2]
[390921990,1760220655731,-500.0,0.00023103,2]
[390921991,1760220655740,-500.0,0.00023103,2]
[390921992,1760220655749,-500.0,0.00023103,2]
[390921993,1760220655758,-500.0,0.00023103,2]
[390921994,1760220655767,-500.0,0.00023103,2]
[390921995,1760220655776,-583.06,0.00023103,2]
[390921996,1760220655786,-300.0,0.00023359,20]
[390921997,1760220655795,-300.0,0.00023359,20]
[390921998,1760220655804,-300.0,0.00023359,20]
[390921999,1760220655813,-300.0,0.00023359,20]
[390922000,1760220655823,-300.0,0.00023359,20]
[390922001,1760220655834,-300.0,0.00023359,20]
[390922002,1760220655843,-300.0,0.00023359,20]
[390922003,1760220655853,-300.0,0.00023359,20]
[390922004,1760220655862,-300.0,0.00023359,20]
[390922005,1760220655871,-300.0,0.00023359,20]
[390922006,1760220655880,-300.0,0.00023359,20]
[390922007,1760220655889,-300.0,0.00023359,20]
[390922008,1760220655899,-300.0,0.00023359,20]
[390922009,1760220655908,-300.0,0.00023359,20]
[390922010,1760220655917,-300.0,0.00023359,20]
[390922011,1760220655926,-600.0,0.00023359,20]
[390922012,1760220655936,-500.0,0.00023421,2]
[390922013,1760220655946,-500.0,0.00023421,2]
[390922014,1760220655955,-500.0,0.00023421,2]
[390922015,1760220655965,-500.0,0.00023421,2]
[390922016,1760220655974,-500.0,0.00023421,2]
[390922017,1760220655984,-500.0,0.00023421,2]
[390922018,1760220655993,-177.10689039,0.00023469,2]
[390922019,1760220656002,-160.0,0.000235,2]
[390922020,1760220656011,-1000.0,0.00023521,2]
[390922021,1760220656020,-500.0,0.00023521,2]
[390922022,1760220656029,-500.0,0.00023521,2]
[390922023,1760220656038,-500.0,0.00023521,2]
[390922024,1760220656048,-500.0,0.00023521,2]
[390922025,1760220656058,-500.0,0.00023521,2]
[390922026,1760220656066,-500.0,0.00023521,2]
[390922027,1760220656076,-506.51789788,0.00023521,2]
[390922028,1760220656085,-500.0,0.00023521,2]
[390922029,1760220656095,-500.0,0.00023521,2]
[390922030,1760220656105,-170.04564756,0.00023521,2]
[390922031,1760220656114,-500.0,0.00023521,2]
[390922032,1760220656123,-500.0,0.00023521,2]
[390922033,1760220656132,-500.0,0.00023521,2]
[390922034,1760220656141,-500.0,0.00023621,2]
[390922035,1760220656151,-505.68056906,0.00023621,2]
[390922036,1760220656160,-240.68581728,0.0002381,2]
[390922037,1760220656169,-362.63705719,0.00024048,2]
[390922038,1760220656179,-1500.0,0.00024068,2]
[390922039,1760220656188,-200.20778913,0.00024069,2]
[390922040,1760220656197,-154.809388,0.0002455,3]
[390922041,1760220656206,-152.19818,0.0002455,3]
[390922042,1760220656215,-2000.0,0.00024616,2]
[390922043,1760220656224,-187.54162087,0.00024658,2]
[390922044,1760220656233,-223.30868788,0.00024669,2]
[390922045,1760220656242,-151.0,0.000247,9]
[390922046,1760220656251,-4678.2253478,0.000248,2]
[390922047,1760220656260,-5589.09732955,0.000248,2]
[390922048,1760220656269,-420.0,0.00024831,2]
[390922049,1760220656279,-150.0,0.00024873,2]
[390922050,1760220656288,-151.0,0.000249,7]
[390922051,1760220656297,-151.0,0.000249,7]
[390922052,1760220656306,-350.907584,0.000249,7]
[390922053,1760220656316,-350.907584,0.000249,7]
[390922054,1760220656325,-350.907584,0.000249,7]
[390922055,1760220656336,-350.907584,0.000249,7]
[390922056,1760220656345,-151.0,0.000249,7]
[390922057,1760220656354,-152.63561,0.000249,7]
[390922058,1760220656364,-151.0,0.000249,7]
[390922059,1760220656373,-151.0,0.000249,7]
[390922060,1760220656384,-276.27354,0.000249,7]
[390922061,1760220656395,-151.0,0.000249,7]
[390922062,1760220656404,-151.0,0.000249,7]
[390922063,1760220656413,-151.0,0.000249,7]
[390922064,1760220656423,-151.0,0.000249,7]
[390922065,1760220656432,-151.0,0.000249,7]
[390922066,1760220656441,-151.0,0.000249,7]
[390922067,1760220656451,-151.0,0.000249,7]
[390922068,1760220656462,-151.0,0.000249,7]
[390922069,1760220656471,-151.0,0.000249,7]
[390922070,1760220656480,-151.0,0.000249,7]
[390922071,1760220656490,-151.0,0.000249,7]
[390922072,1760220656499,-151.0,0.000249,7]
[390922073,1760220656508,-151.0,0.000249,7]
[390922074,1760220656517,-151.0,0.000249,7]
[390922075,1760220656527,-151.0,0.000249,7]
[390922076,1760220656617,-151.0,0.000249,7]
[390922077,1760220656627,-151.0,0.000249,7]
[390922078,1760220656637,-151.0,0.000249,7]
[390922079,1760220656646,-151.0,0.000249,7]
[390922080,1760220656655,-184.842543,0.000249,7]
[390922081,1760220656664,-207.662129,0.000249,7]
[390922082,1760220656673,-207.662129,0.000249,7]
[390922083,1760220656682,-151.0,0.000249,7]
[390922084,1760220656692,-207.662129,0.000249,7]
[390922085,1760220656701,-207.662129,0.000249,7]
[390922086,1760220656710,-151.0,0.000249,7]
[390922087,1760220656720,-151.0,0.000249,7]
[390922088,1760220656729,-267.782244,0.000249,7]
[390922089,1760220656738,-273347.52724903,0.000249,2]
[390922090,1760220656863,-266385.39586397,0.000249,2]
[390922091,1760220656873,-151.0,0.000249,7]
[390922092,1760220656882,-151.0,0.000249,7]
[390922093,1760220656892,-151.0,0.000249,7]
[390922094,1760220656901,-151.0,0.000249,7]
[390922095,1760220656910,-151.0,0.000249,7]
[390922096,1760220656920,-151.0,0.000249,7]
[390922097,1760220656930,-151.0,0.000249,7]
[390922098,1760220656939,-200.28684,0.000249,7]
[390922099,1760220656948,-2609.37557469,0.000249,7]
[390922100,1760220656958,-151.0,0.000249,7]
[390922101,1760220656967,-151.0,0.000249,7]
[390922102,1760220656976,-151.0,0.000249,7]
[390922103,1760220656985,-153.822419,0.000249,7]
[390922104,1760220656995,-151.0,0.000249,7]
[390922105,1760220657004,-151.0,0.000249,7]
[390922106,1760220657014,-151.0,0.000249,7]
[390922107,1760220657023,-821.94325,0.000249,7]
[390922108,1760220657032,-821.94325,0.000249,7]
[390922109,1760220657041,-153.788007,0.000249,7]
[390922110,1760220657051,-821.94325,0.000249,7]
[390922111,1760220657060,-821.94325,0.000249,7]
[390922112,1760220657070,-151.0,0.000249,7]
[390922113,1760220657080,-151.0,0.000249,7]
[390922114,1760220657090,-190.82420959,0.00024914,8]
[390922115,1760220657101,-234.45,0.00024914,8]
[390922116,1760220657110,-831.08426687,0.00024937,2]
[390922117,1760220657121,-1680.0,0.00024945,2]
[390922118,1760220657131,-2500.0,0.00025164,2]
[390922119,1760220657141,-246.40958663,0.00025269,2]
[390922120,1760220657151,-187.76775891,0.00025421,2]
[390922121,1760220657161,-359.22761131,0.00025685,2]
[390922122,1760220657170,-720.0,0.00025695,20]
[390922123,1760220657179,-3000.0,0.00025712,2]
[390922124,1760220657188,-269.51048537,0.00025869,2]
[390922125,1760220657198,-348.28956282,0.00026,2]
[390922126,1760220657207,-806.7321194,0.00026002,2]
[390922127,1760220657217,-2609.37557469,0.00026005,2]
[390922128,1760220657227,-4509.91,0.00026027,2]
[390922129,1760220657237,-298.08050243,0.00026051,2]
[390922130,1760220657247,-312.16666667,0.00026052,2]
[390922131,1760220657256,-160.0,0.00026052,2]
[390922132,1760220657265,-846.66296295,0.000261,2]
[390922133,1760220657275,-160.0,0.000261,2]
[390922134,1760220657284,-1342.87767558,0.000261,2]
[390922135,1760220657293,-3013.85770469,0.0002626,2]
[390922136,1760220657302,-348.28956282,0.000263,2]
[390922137,1760220657312,-160.0,0.000263,2]
[390922138,1760220657322,-1342.87767558,0.000263,2]
[390922139,1760220657333,-961.78052586,0.00026328,2]
[390922140,1760220657343,-846.66296295,0.000264,2]
[390922141,1760220657352,-18603.8837,0.00026444,2]
[390922142,1760220657361,-153.0,0.00026458,2]
[390922143,1760220657370,-153.0,0.00026458,2]
[390922144,1760220657379,-153.0,0.00026458,2]
[390922145,1760220657392,-153.0,0.00026458,2]
[390922146,1760220657401,-153.0,0.00026458,2]
[390922147,1760220657411,-292.61138412,0.00026469,2]
[390922148,1760220657420,-348.28956282,0.000265,2]
[390922149,1760220657431,-846.66296295,0.000266,2]
[390922150,1760220657440,-1342.87767558,0.000266,2]
[390922151,1760220657449,-834.991497,0.00026676,2]
[390922152,1760220657459,-348.28956282,0.000268,2]
[390922153,1760220657469,-846.66296295,0.000269,2]
[390922154,1760220657479,-1342.87767558,0.000269,2]
[390922155,1760220657487,-587.0,0.00026959,2]
[390922156,1760220657497,-11977.20636141,0.00026992,2]
[390922157,1760220657506,-666.0,0.00027005,2]
[390922158,1760220657515,-315.71228286,0.00027069,2]
[390922159,1760220657524,-831.08426687,0.00027073,2]
[390922160,1760220657534,-348.28956282,0.000271,2]
[390922161,1760220657543,-151.0,0.000271,20]
[390922162,1760220657552,-1342.87767558,0.000271,2]
[390922163,1760220657561,-1081.92,0.00027123,10]
[390922164,1760220657571,-1081.92,0.00027123,10]
[390922165,1760220657580,-1081.92,0.00027123,10]
[390922166,1760220657589,-1081.92,0.00027123,10]
[390922167,1760220657598,-1081.92,0.00027123,10]
[390922168,1760220657607,-1081.92,0.00027123,10]
[390922169,1760220657617,-1081.92,0.00027123,10]
[390922170,1760220657626,-1081.92,0.00027123,10]
[390922171,1760220657634,-1081.92,0.00027123,10]
[390922172,1760220657644,-1081.92,0.00027123,10]
[390922173,1760220657653,-1081.92,0.00027123,10]
[390922174,1760220657662,-1081.92,0.00027123,10]
[390922175,1760220657671,-1081.92,0.00027123,10]
[390922176,1760220657680,-1081.92,0.00027123,10]
[390922177,1760220657689,-1081.92,0.00027123,10]
[390922178,1760220657699,-1081.92,0.00027123,10]
[390922179,1760220657708,-1081.92,0.00027123,10]
[390922180,1760220657719,-1081.92,0.00027123,10]
[390922181,1760220657727,-1081.92,0.00027123,10]
[390922182,1760220657737,-1081.92,0.00027123,10]
[390922183,1760220657746,-1081.92,0.00027123,10]
[390922184,1760220657756,-1081.92,0.00027123,10]
[390922185,1760220657765,-1081.92,0.00027123,10]
[390922186,1760220657774,-1082.00538687,0.00027123,10]
[390922187,1760220657783,-151.0,0.00027123,7]
[390922188,1760220657793,-151.0,0.00027123,7]
[390922189,1760220657803,-151.0,0.00027123,7]
[390922190,1760220657812,-151.0,0.00027123,7]
[390922191,1760220657822,-180.199188,0.00027123,7]
[390922192,1760220657832,-443.042097,0.00027123,7]
[390922193,1760220657842,-443.042097,0.00027123,7]
[390922194,1760220657851,-151.0,0.00027123,7]
[390922195,1760220657860,-443.042097,0.00027123,7]
[390922196,1760220657870,-443.042097,0.00027123,7]
[390922197,1760220657879,-151.0,0.00027123,7]
[390922198,1760220657888,-153.281682,0.00027123,7]
[390922199,1760220657897,-2609.37557469,0.00027123,10]
[390922200,1760220657906,-151.0,0.00027123,7]
[390922201,1760220657916,-151.915734,0.00027123,7]
[390922202,1760220657926,-151.915734,0.00027123,7]
[390922203,1760220657935,-151.915734,0.00027123,7]
[390922204,1760220657945,-151.915734,0.00027123,7]
[390922205,1760220657954,-846.66296295,0.000272,2]
[390922206,1760220657963,-1200.0,0.00027209,2]
[390922207,1760220657973,-3000.0,0.000273,2]
[390922208,1760220657982,-3000.0,0.0002731,2]
[390922209,1760220657992,-3000.0,0.0002732,2]
[390922210,1760220658001,-3000.0,0.0002733,2]
[390922211,1760220658011,-3000.0,0.0002734,2]
[390922212,1760220658020,-3000.0,0.0002735,2]
[390922213,1760220658030,-3000.0,0.0002736,2]
[390922214,1760220658040,-3000.0,0.0002737,2]
[390922215,1760220658049,-3000.0,0.0002738,2]
[390922216,1760220658061,-3000.0,0.0002739,2]
[390922217,1760220658071,-1000.0,0.00027397,30]
[390922218,1760220658080,-1000.0,0.00027397,30]
[390922219,1760220658090,-1000.0,0.00027397,30]
[390922220,1760220658099,-1000.0,0.00027397,30]
[390922221,1760220658109,-1000.0,0.00027397,30]
[390922222,1760220658118,-1135.99673508,0.00027397,30]
[390922223,1760220658127,-4509.91,0.00027397,4]
[390922224,1760220658137,-2609.37557469,0.00027397,30]
[390922225,1760220658146,-300.0,0.00027397,30]
[390922226,1760220658156,-300.0,0.00027397,30]
[390922227,1760220658165,-300.0,0.00027397,30]
[390922228,1760220658259,-300.0,0.00027397,30]
[390922229,1760220658269,-300.0,0.00027397,30]
[390922230,1760220658278,-300.0,0.00027397,30]
[390922231,1760220658288,-300.0,0.00027397,30]
[390922232,1760220658297,-300.0,0.00027397,30]
[390922233,1760220658307,-300.0,0.00027397,30]
[390922234,1760220658316,-300.0,0.00027397,30]
[390922235,1760220658325,-300.0,0.00027397,30]
[390922236,1760220658338,-300.0,0.00027397,30]
[390922237,1760220658347,-300.0,0.00027397,30]
[390922238,1760220658356,-300.0,0.00027397,30]
[390922239,1760220658366,-300.0,0.00027397,30]
[390922240,1760220658375,-300.0,0.00027397,30]
[390922241,1760220658388,-300.0,0.00027397,30]
[390922242,1760220658398,-300.0,0.00027397,30]
[390922243,1760220658407,-300.0,0.00027397,30]
[390922244,1760220658416,-300.0,0.00027397,30]
[390922245,1760220658427,-300.0,0.00027397,30]
[390922246,1760220658436,-300.0,0.00027397,30]
[390922247,1760220658445,-300.0,0.00027397,30]
[390922248,1760220658455,-200.461075,0.00027397,30]
[390922249,1760220658464,-500.0,0.00027397,5]
[390922250,1760220658474,-150.0,0.00027397,5]
[390922251,1760220658483,-3000.0,0.000274,2]
[390922252,1760220658492,-3787.95,0.000274,2]
[390922253,1760220658501,-6769.95,0.000274,2]
[390922254,1760220658511,-3000.0,0.0002741,2]
[390922255,1760220658520,-3000.0,0.0002742,2]
[390922256,1760220658529,-3000.0,0.0002743,2]
[390922257,1760220658539,-3000.0,0.0002744,2]
[390922258,1760220658548,-3000.0,0.0002745,2]
[390922259,1760220658557,-3000.0,0.0002746,2]
[390922260,1760220658566,-3000.0,0.0002747,2]
[390922261,1760220658575,-3000.0,0.0002748,2]
[390922262,1760220658587,-3000.0,0.0002749,2]
[390922263,1760220658596,-3000.0,0.000275,2]
[390922264,1760220658606,-3000.0,0.0002751,2]
[390922265,1760220658615,-3000.0,0.0002752,2]
[390922266,1760220658624,-3000.0,0.0002753,2]
[390922267,1760220658634,-3000.0,0.0002754,2]
[390922268,1760220658643,-3000.0,0.0002755,2]
[390922269,1760220658653,-380.0,0.00027558,2]
[390922270,1760220658662,-3000.0,0.0002756,2]
[390922271,1760220658671,-3000.0,0.0002757,2]
[390922272,1760220658679,-150.0,0.00027573,5]
[390922273,1760220658688,-150.0,0.00027573,5]
[390922274,1760220658697,-3000.0,0.0002758,2]
[390922275,1760220658707,-3000.0,0.0002759,2]
[390922276,1760220658716,-5292.911547,0.000276,2]
[390922277,1760220658725,-151.87,0.00027602,15]
[390922278,1760220658734,-338.81318161,0.00027669,2]
[390922279,1760220658743,-200.0,0.000277,120]
[390922280,1760220658753,-151.87,0.00027702,15]
[390922281,1760220658762,-151.87,0.00027802,15]
[390922282,1760220658771,-793.0,0.00027818,2]
[390922283,1760220658781,-151.87,0.00027902,15]
[390922284,1760220658791,-793.0,0.00027923,2]
[390922285,1760220658800,-250.0,0.00027945,5]
[390922286,1760220658810,-1200.0,0.00027964,7]
[390922287,1760220658819,-151.87,0.00028002,15]
[390922288,1760220658828,-151.87,0.00028102,15]
[390922289,1760220658838,-793.0,0.00028113,2]
[390922290,1760220658847,-300.0,0.00028121,5]
[390922291,1760220658856,-250.0,0.00028121,5]
[390922292,1760220658865,-793.0,0.00028163,2]
[390922293,1760220658875,-793.0,0.00028181,2]
[390922294,1760220658884,-793.0,0.00028188,2]
[390922295,1760220658893,-154.809388,0.00028195,4]
[390922296,1760220658902,-151.87,0.00028202,15]
[390922297,1760220658912,-864.0,0.00028264,30]
[390922298,1760220658921,-361.91408036,0.00028269,2]
[390922299,1760220658931,-151.87,0.00028302,15]
[390922300,1760220658940,-200.0,0.000284,120]
[390922301,1760220658950,-151.87,0.00028402,15]
[390922302,1760220658959,-793.0,0.0002841,2]
[390922303,1760220658969,-794.0,0.00028449,7]
[390922304,1760220658978,-350.0,0.00028493,5]
[390922305,1760220658987,-151.87,0.00028502,15]
[390922306,1760220658996,-793.0,0.00028518,2]
[390922307,1760220659006,-4196.0,0.0002854,2]
[390922308,1760220659015,-980.0,0.0002854,2]
[390922309,1760220659024,-630.0,0.0002854,2]
[390922310,1760220659033,-2159.0,0.0002854,2]
[390922311,1760220659042,-793.0,0.00028563,2]
[390922312,1760220659051,-151.87,0.00028602,15]
[390922313,1760220659060,-450.0,0.00028668,5]
[390922314,1760220659070,-350.0,0.00028668,5]
[390922315,1760220659081,-151.87,0.00028702,15]
[390922316,1760220659090,-150.0,0.00028716,2]
[390922317,1760220659099,-150.0,0.00028716,2]
[390922318,1760220659108,-4509.91,0.00028767,6]
[390922319,1760220659118,-1200.0,0.00028786,7]
[390922320,1760220659127,-151.87,0.00028802,15]
[390922321,1760220659136,-385.0149791,0.00028869,2]
[390922322,1760220659145,-151.87,0.00028902,15]
[390922323,1760220659154,-793.0,0.00028984,2]
[390922324,1760220659164,-6769.95,0.00029,2]
[390922325,1760220659173,-151.87,0.00029002,15]
[390922326,1760220659182,-470.11389129,0.00029041,5]
[390922327,1760220659191,-793.0,0.00029076,2]
[390922328,1760220659201,-200.0,0.000291,120]
[390922329,1760220659210,-151.87,0.00029102,15]
[390922330,1760220659219,-806.7321194,0.00029142,2]
[390922331,1760220659228,-793.0,0.00029161,2]
[390922332,1760220659237,-154.809388,0.00029179,20]
[390922333,1760220659246,-152.19818,0.00029179,20]
[390922334,1760220659255,-151.87,0.00029202,15]
[390922335,1760220659264,-831.08426687,0.00029208,2]
[390922336,1760220659273,-600.0,0.00029216,5]
[390922337,1760220659283,-450.0,0.00029216,5]
[390922338,1760220659292,-151.87,0.00029302,15]
[390922339,1760220659301,-793.0,0.00029396,2]
[390922340,1760220659310,-151.87,0.00029402,15]
[390922341,1760220659319,-794.0,0.00029404,2]
[390922342,1760220659328,-408.11587785,0.00029469,2]
[390922343,1760220659338,-151.93098415,0.00029502,15]
[390922344,1760220659347,-793.0,0.00029528,2]
[390922345,1760220659356,-154.809388,0.00029556,6]
[390922346,1760220659365,-152.19818,0.00029556,6]
[390922347,1760220659374,-1200.0,0.00029608,7]